fUST/lending_fUST_20241022
["ID","MTS","AMOUNT","RATE_DAILY","PERIOD"]
[340627401,1729554635428,-2457.67,0.00016438,2]
[340627402,1729554635437,-982.99,0.00016438,2]
[340627403,1729554635447,-652.36,0.00016438,2]
[340627404,1729554635456,-545.39,0.00016438,2]
[340627405,1729554635466,-865.96,0.00016438,2]
[340627406,1729554635475,-500.0,0.00016438,2]
[340627407,1729554635485,-897.72,0.00016438,2]
[340627408,1729554635494,-500.0,0.00016438,2]
[340627409,1729554635503,-500.0,0.00016438,2]
[340627410,1729554635512,-1572.61,0.00016438,2]
[340627411,1729554635522,-500.0,0.00016438,2]
[340627412,1729554635533,-659.37,0.00016438,2]
[340627413,1729554635542,-1081.17,0.00016438,2]
[340627414,1729554635551,-500.0,0.00016438,2]
[340627415,1729554635561,-500.0,0.00016438,2]
[340627416,1729554635570,-694.8,0.00016438,2]
[340627417,1729554635579,-1238.85,0.00016438,2]
[340627418,1729554635588,-4053.3,0.00016438,2]
[340627419,1729554635598,-8890.20115101,0.00016547,2]
[340627420,1729554635607,-150.715,0.00016561,2]
[340627421,1729554635616,-527.0,0.00016561,2]
[340627422,1729554635626,-1152.0,0.00016561,2]
[340627423,1729554635636,-1804.0,0.00016561,2]
[340627424,1729554635646,-4386.996692,0.00016625,2]
[340627425,1729554635655,-895.83799961,0.00016672,2]
[340627426,1729554635664,-4059.82008998,0.00016672,2]
[340627427,1729554635674,-895.83799961,0.00016682,2]
[340627428,1729554635683,-4059.82008998,0.00016682,2]
[340627429,1729554635693,-4479.18999805,0.00016702,2]
[340627430,1729554635702,-20299.1004499,0.00016702,2]
[340627431,1729554635713,-295.22298443,0.00016711,2]
[340627432,1729554635722,-25593.18655969,0.00016712,2]
[340627433,1729554635731,-1539.96009074,0.00016712,2]
[340627434,1729554635740,-715.94,0.00016712,2]
[340627435,1729554635750,-509.63,0.00016712,2]
[340627436,1729554635759,-751.49,0.00016712,2]
[340627437,1729554635768,-500.0,0.00016712,2]
[340627438,1729554635777,-500.0,0.00016712,2]
[340627439,1729554635788,-500.0,0.00016712,2]
[340627440,1729554635798,-500.0,0.00016712,2]
[340627441,1729554635806,-500.0,0.00016712,2]
[340627442,1729554635815,-532.35359998,0.00016712,2]
[340627443,1729554635825,-500.0,0.00016712,2]
[340627444,1729554635835,-500.0,0.00016712,2]
[340627445,1729554635844,-500.0,0.00016712,2]
[340627446,1729554635853,-500.0,0.00016712,2]
[340627447,1729554635862,-500.0,0.00016712,2]
[340627448,1729554635872,-500.0,0.00016712,2]
[340627449,1729554635883,-500.0,0.00016712,2]
[340627450,1729554635893,-520.34,0.00016712,2]
[340627451,1729554635902,-500.0,0.00016712,2]
[340627452,1729554635912,-962.1,0.00016712,2]
[340627453,1729554635922,-500.0,0.00016712,2]
[340627454,1729554635931,-1211.86,0.00016712,2]
[340627455,1729554635941,-561.33,0.00016712,2]
[340627456,1729554635950,-500.0,0.00016712,2]
[340627457,1729554635960,-1000.0,0.00016712,2]
[340627458,1729554635970,-694.94,0.00016712,2]
[340627459,1729554635979,-500.0,0.00016712,2]
[340627460,1729554635989,-500.0,0.00016712,2]
[340627461,1729554635999,-500.0,0.00016712,2]
[340627462,1729554636008,-500.0,0.00016712,2]
[340627463,1729554636017,-500.0,0.00016712,2]
[340627464,1729554636027,-500.0,0.00016712,2]
[340627465,1729554636037,-500.0,0.00016712,2]
[340627466,1729554636046,-682.68,0.00016712,2]
[340627467,1729554636056,-549.01,0.00016712,2]
[340627468,1729554636066,-500.0,0.00016712,2]
[340627469,1729554636075,-500.0,0.00016712,2]
[340627470,1729554636085,-500.0,0.00016712,2]
[340627471,1729554636094,-500.0,0.00016712,2]
[340627472,1729554636103,-1245.04,0.00016712,2]
[340627473,1729554636112,-527.42,0.00016712,2]
[340627474,1729554636122,-500.0,0.00016712,2]
[340627475,1729554636131,-1019.91,0.00016712,2]
[340627476,1729554636140,-500.0,0.00016712,2]
[340627477,1729554636150,-500.0,0.00016712,2]
[340627478,1729554636159,-500.0,0.00016712,2]
[340627479,1729554636168,-5.33474552,0.00016712,2]
[340627480,1729554636432,-494.66525448,0.00016712,2]
[340627481,1729554636444,-500.0,0.00016712,2]
[340627482,1729554636455,-500.0,0.00016712,2]
[340627483,1729554636465,-920.35,0.00016712,2]
[340627484,1729554636475,-804.94,0.00016712,2]
[340627485,1729554636485,-500.0,0.00016712,2]
[340627486,1729554636495,-1016.03,0.00016712,2]
[340627487,1729554636504,-661.83,0.00016712,2]
[340627488,1729554636515,-826.84,0.00016712,2]
[340627489,1729554636525,-531.1,0.00016712,2]
[340627490,1729554636536,-500.0,0.00016712,2]
[340627491,1729554636546,-794.35,0.00016712,2]
[340627492,1729554636556,-500.0,0.00016712,2]
[340627493,1729554636565,-625.49,0.00016712,2]
[340627494,1729554636576,-500.0,0.00016712,2]
[340627495,1729554636586,-892.37,0.00016712,2]
[340627496,1729554636595,-210.84671543,0.00016712,2]
[340627552,1729554638626,-500.0,0.00016438,2]
[340627554,1729554638636,-1155.86125032,0.00016612,2]
[340627556,1729554638646,-289.15328457,0.00016712,2]
[340627558,1729554638656,-500.0,0.00016712,2]
[340627560,1729554638666,-1129.45,0.00016712,2]
[340627562,1729554638677,-500.0,0.00016712,2]
[340627564,1729554638687,-627.42,0.00016712,2]
[340627567,1729554638698,-555.05,0.00016712,2]
[340627569,1729554638708,-500.0,0.00016712,2]
[340627571,1729554638719,-858.78,0.00016712,2]
[340627573,1729554638730,-500.0,0.00016712,2]
[340627575,1729554638741,-907.81,0.00016712,2]
[340627577,1729554638751,-991.7,0.00016712,2]
[340627579,1729554638761,-896.99,0.00016712,2]
[340627582,1729554638771,-881.34,0.00016712,2]
[340627584,1729554638782,-1765.85,0.00016712,2]
[340627586,1729554638792,-501.56,0.00016712,2]
[340627588,1729554638803,-500.0,0.00016712,2]
[340627590,1729554638813,-533.87,0.00016712,2]
[340627592,1729554638824,-500.0,0.00016712,2]
[340627594,1729554638834,-642.83616061,0.00016712,2]
[340627596,1729554638845,-909.5,0.00016712,2]
[340627598,1729554638855,-500.0,0.00016712,2]
[340627600,1729554638865,-807.8,0.00016712,2]
[340627602,1729554638875,-500.0,0.00016712,2]
[340627604,1729554638888,-500.0,0.00016712,2]
[340627606,1729554638898,-1733.03,0.00016712,2]
[340627608,1729554638908,-743.85,0.00016712,2]
[340627610,1729554638918,-500.0,0.00016712,2]
[340627612,1729554638928,-650.19,0.00016712,2]
[340627614,1729554638938,-500.0,0.00016712,2]
[340627617,1729554638947,-500.0,0.00016712,2]
[340627619,1729554638958,-748.57,0.00016712,2]
[340627621,1729554638967,-500.0,0.00016712,2]
[340627622,1729554638977,-500.0,0.00016712,2]
[340627624,1729554638988,-500.0,0.00016712,2]
[340627627,1729554638997,-1131.14,0.00016712,2]
[340627628,1729554639008,-500.0,0.00016712,2]
[340627630,1729554639018,-1346.66,0.00016712,2]
[340627632,1729554639028,-500.0,0.00016712,2]
[340627634,1729554639040,-500.0,0.00016712,2]
[340627635,1729554639050,-824.29,0.00016712,2]
[340627636,1729554639060,-1178.02,0.00016712,2]
[340627637,1729554639071,-519.89,0.00016712,2]
[340627638,1729554639080,-610.02,0.00016712,2]
[340627639,1729554639090,-500.0,0.00016712,2]
[340627640,1729554639100,-500.0,0.00016712,2]
[340627641,1729554639109,-500.0,0.00016712,2]
[340627642,1729554639119,-500.0,0.00016712,2]
[340627643,1729554639129,-500.0,0.00016712,2]
[340627644,1729554639139,-500.0,0.00016712,2]
[340627645,1729554639151,-552.13,0.00016712,2]
[340627646,1729554639160,-544.63,0.00016712,2]
[340627647,1729554639170,-825.69,0.00016712,2]
[340627648,1729554639180,-728.39,0.00016712,2]
[340627649,1729554639189,-48.32732139,0.00016712,2]
[340627783,1729554646418,-20.01005651,0.00016438,2]
[340628064,1729555203610,500.0,0.0001,2]
[340628065,1729555203983,500.0,0.0001,2]
[340628066,1729555204365,500.0,0.0001,2]
[340628067,1729555204792,163.11281689,0.0001,2]
[340628068,1729555642139,-250.0,0.00013291,2]
[340628069,1729555642162,-202.9559612,0.00013494,2]
[340628070,1729555642185,-605.00579198,0.00013811,2]
[340628071,1729555649101,-2394.99420802,0.00013811,2]
[340628072,1729555649123,-162.236249,0.00013878,2]
[340628073,1729555649143,-162.236249,0.00013916,2]
[340628074,1729555649163,-414.8175926,0.00013929,2]
[340628075,1729555649184,-162.236249,0.00013954,2]
[340628076,1729555649204,-162.236249,0.00013992,2]
[340628077,1729555649225,-162.236249,0.0001403,2]
[340628078,1729555649247,-162.236249,0.00014068,2]
[340628079,1729555649267,-162.236249,0.00014106,2]
[340628080,1729555649287,-162.236249,0.00014144,2]
[340628081,1729555649308,-162.236249,0.00014182,2]
[340628082,1729555649330,-162.236249,0.0001422,2]
[340628083,1729555649352,-162.236249,0.00014258,2]
[340628084,1729555649373,-162.236249,0.00014296,2]
[340628085,1729555649392,-162.236249,0.00014334,2]
[340628086,1729555649413,-162.236249,0.00014372,2]
[340628087,1729555649434,-162.236249,0.0001441,2]
[340628088,1729555649457,-162.236249,0.00014448,2]
[340628089,1729555649476,-162.236249,0.00014486,2]
[340628090,1729555649498,-162.236249,0.00014524,2]
[340628091,1729555649518,-82.53996986,0.00014563,2]
[340628092,1729555687651,466.45,0.00010959,2]
[340628093,1729555750169,-5279.6587833,0.00013828,2]
[340628094,1729555750193,-79.69627914,0.00014563,2]
[340628095,1729555750214,-162.236249,0.00014601,2]
[340628096,1729555750235,-300.0,0.00014641,2]
[340628097,1729555750256,-24900.0,0.00014642,2]
[340628098,1729555811140,388.7,0.00010959,2]
[340628099,1729555821717,323.92,0.00010959,2]
[340628131,1729555832282,269.93,0.00010959,2]
[340628400,1729555838750,-1555.01255968,0.00014914,2]
[340628429,1729555843090,111.76365381,0.00010959,2]
[340628432,1729555843111,113.18634619,0.00010959,2]
[340628441,1729555843568,-1160.95000004,0.00014914,2]
[340628496,1729555846664,-313.49737333,0.00014914,2]
[340628498,1729555846673,-300.0,0.0001525,2]
[340628500,1729555846683,-2831.04754361,0.00015251,2]
[340628502,1729555846694,-14205.69513599,0.00015251,2]
[340628504,1729555846703,-159.963271,0.0001589,2]
[340628506,1729555846712,-150.0,0.00015917,2]
[340628508,1729555846723,-527.0,0.00015917,2]
[340628510,1729555846732,-1152.0,0.00015917,2]
[340628512,1729555846741,-1804.0,0.00015917,2]
[340628513,1729555846885,-302.3308074,0.00016049,2]
[340628514,1729555846895,-302.3308074,0.00016049,2]
[340628515,1729555846904,-302.3308074,0.00016049,2]
[340628516,1729555846913,-302.3308074,0.00016049,2]
[340628517,1729555846922,-314.81986024,0.00016328,2]
[340628518,1729555846932,-351.99568697,0.00016337,2]
[340628519,1729555846942,-2344.69626126,0.00016338,2]
[340628520,1729555846951,-2344.69626125,0.00016407,2]
[340628521,1729555846960,-581.15277887,0.00016407,2]
[340628522,1729555846970,-4723.60010724,0.00016418,2]
[340628523,1729555846980,-1217.94602718,0.00016418,2]
[340628524,1729555846989,-787.26668454,0.00016428,2]
[340628525,1729555846999,-202.99100453,0.00016428,2]
[340628526,1729555847008,-3936.3334227,0.00016428,2]
[340628527,1729555847017,-1014.95502265,0.00016428,2]
[340628528,1729555847027,-547.3,0.00016438,2]
[340628529,1729555847036,-500.0,0.00016438,2]
[340628530,1729555847045,-500.0,0.00016438,2]
[340628531,1729555847055,-500.0,0.00016438,2]
[340628532,1729555847065,-500.0,0.00016438,2]
[340628533,1729555847074,-528.94,0.00016438,2]
[340628534,1729555847083,-500.0,0.00016438,2]
[340628535,1729555847093,-500.0,0.00016438,2]
[340628536,1729555847102,-500.0,0.00016438,2]
[340628537,1729555847111,-500.0,0.00016438,2]
[340628538,1729555847121,-500.0,0.00016438,2]
[340628539,1729555847130,-500.0,0.00016438,2]
[340628540,1729555847139,-500.0,0.00016438,2]
[340628541,1729555847148,-500.0,0.00016438,2]
[340628542,1729555847159,-500.0,0.00016438,2]
[340628543,1729555847168,-500.0,0.00016438,2]
[340628544,1729555847177,-500.0,0.00016438,2]
[340628545,1729555847187,-500.0,0.00016438,2]
[340628546,1729555847196,-500.0,0.00016438,2]
[340628547,1729555847206,-500.0,0.00016438,2]
[340628548,1729555847215,-500.0,0.00016438,2]
[340628549,1729555847224,-501.62392116,0.00016438,2]
[340628550,1729555847233,-500.0,0.00016438,2]
[340628551,1729555847243,-500.0,0.00016438,2]
[340628552,1729555847252,-861.58,0.00016438,2]
[340628553,1729555847261,-500.0,0.00016438,2]
[340628554,1729555847270,-500.0,0.00016438,2]
[340628555,1729555847280,-856.43,0.00016438,2]
[340628556,1729555847289,-500.0,0.00016438,2]
[340628557,1729555847299,-500.0,0.00016438,2]
[340628558,1729555847308,-500.0,0.00016438,2]
[340628559,1729555847317,-500.0,0.00016438,2]
[340628560,1729555847326,-500.0,0.00016438,2]
[340628561,1729555847335,-371.19203936,0.00016438,2]
[340628562,1729555847344,-500.0,0.00016438,2]
[340628563,1729555847353,-500.0,0.00016438,2]
[340628564,1729555847362,-807.89,0.00016438,2]
[340628565,1729555847372,-500.0,0.00016438,2]
[340628566,1729555847381,-505.54,0.00016438,2]
[340628567,1729555847391,-500.0,0.00016438,2]
[340628568,1729555847400,-500.0,0.00016438,2]
[340628569,1729555847409,-500.0,0.00016438,2]
[340628570,1729555847418,-193.37223694,0.00016438,2]
[340628571,1729555847427,-70.44840231,0.00016438,2]
[340628572,1729555853466,187.45,0.00010959,2]
[340628573,1729555864088,156.21,0.00010959,2]
[340628574,1729555874895,781.09,0.00010959,2]
[340628575,1729555964623,273.37336231,9.9e-05,2]
[340628576,1729555972995,273.37336231,9.9e-05,2]
[340628577,1729555980995,273.37336231,9.9e-05,2]
[340628578,1729555988779,273.37336231,9.9e-05,2]
[340628579,1729555996822,273.37336231,9.9e-05,2]
[340628580,1729556004771,273.37336231,9.9e-05,2]
[340628581,1729556012811,273.37336231,9.9e-05,2]
[340628582,1729556020526,273.37336231,9.9e-05,2]
[340628588,1729556737141,-300.0,0.00014575,2]
[340628589,1729556737164,-172.95326844,0.00014575,2]
[340628590,1729556816096,-169.29422994,0.00014575,2]
[340628593,1729556840138,-239.67568082,0.00014575,2]
[340628595,1729556848106,-60.32431918,0.00014575,2]
[340628596,1729556848127,-181.25101,0.00014576,2]
[340628597,1729556848148,-193.0737773,0.00014576,2]
[340628598,1729556849137,-254.53086746,0.00014576,2]
[340628599,1729556851121,-14818.82823018,0.00014576,2]
[340628602,1729556951091,-2087.12785558,0.00014576,2]
[340628603,1729556955150,-7546.43926948,0.00014576,2]
[340628604,1729556955173,-300.0,0.00014581,2]
[340628605,1729556955194,-169.29423,0.00014583,2]
[340628606,1729556955217,-181.25101,0.00014591,2]
[340628607,1729556955239,-181.25101,0.00014605,2]
[340628608,1729556955262,-181.25101,0.0001462,2]
[340628609,1729556955284,-181.25101,0.00014634,2]
[340628610,1729556955306,-181.25101,0.00014649,2]
[340628611,1729556955330,-234.603618,0.00014776,2]
[340628623,1729557031990,500.0,0.00013,2]
[340628671,1729557032644,-377.25186169,0.00014814,2]
[340628672,1729557032654,-296.37289952,0.00015,2]
[340628673,1729557032664,-234.603618,0.00015546,2]
[340628674,1729557032673,-164.465107,0.0001589,2]
[340628675,1729557032684,-5727.25148917,0.00016256,2]
[340628676,1729557032694,-300.0,0.00016326,2]
[340628677,1729557032704,-2650.77744141,0.00016327,2]
[340628678,1729557032714,-209.67019133,0.00016328,2]
[340628679,1729557032724,-10139.58131408,0.00016338,2]
[340628680,1729557032734,-608.9730144,0.00016418,2]
[340628681,1729557032745,-405.9820096,0.00016428,2]
[340628682,1729557032763,-500.0,0.00016437,2]
[340628683,1729557032774,-510.70225335,0.00016437,2]
[340628684,1729557032783,-428.10101017,0.00016437,2]
[340628685,1729557032792,-600.79510199,0.00016437,2]
[340628686,1729557032801,-560.16808885,0.00016438,2]
[340628687,1729557032810,-22133.83020588,0.00016438,2]
[340628688,1729557032820,-1372.15012359,0.00016438,2]
[340628689,1729557032830,-500.0,0.00016438,2]
[340628690,1729557032840,-588.85,0.00016438,2]
[340628691,1729557032849,-832.09,0.00016438,2]
[340628692,1729557032860,-500.0,0.00016438,2]
[340628693,1729557032869,-500.0,0.00016438,2]
[340628694,1729557032879,-712.87,0.00016438,2]
[340628695,1729557032890,-587.59,0.00016438,2]
[340628696,1729557032900,-500.0,0.00016438,2]
[340628697,1729557032909,-500.0,0.00016438,2]
[340628698,1729557032919,-500.0,0.00016438,2]
[340628699,1729557032928,-500.0,0.00016438,2]
[340628700,1729557032938,-651.84,0.00016438,2]
[340628701,1729557032948,-500.0,0.00016438,2]
[340628702,1729557032958,-500.0,0.00016438,2]
[340628703,1729557032967,-200.0,0.00016438,2]
[340628704,1729557032977,-500.0,0.00016438,2]
[340628705,1729557032986,-500.0,0.00016438,2]
[340628706,1729557032996,-500.0,0.00016438,2]
[340628707,1729557033013,-857.58,0.00016438,2]
[340628708,1729557033024,-500.0,0.00016438,2]
[340628709,1729557033034,-500.0,0.00016438,2]
[340628710,1729557033044,-500.0,0.00016438,2]
[340628711,1729557033055,-151.0,0.00016438,2]
[340628712,1729557033065,-500.0,0.00016438,2]
[340628713,1729557033075,-728.27,0.00016438,2]
[340628714,1729557033086,-500.0,0.00016438,2]
[340628715,1729557033096,-500.0,0.00016438,2]
[340628716,1729557033106,-865.75,0.00016438,2]
[340628717,1729557033116,-500.0,0.00016438,2]
[340628718,1729557033126,-151.0,0.00016438,2]
[340628719,1729557033136,-394.9469055,0.00016438,2]
[340628720,1729557033146,-500.0,0.00016438,2]
[340628721,1729557033156,-500.0,0.00016438,2]
[340628722,1729557033167,-500.0,0.00016438,2]
[340628723,1729557033177,-500.0,0.00016438,2]
[340628724,1729557033187,-510.77,0.00016438,2]
[340628725,1729557033197,-512.54,0.00016438,2]
[340628726,1729557033207,-500.0,0.00016438,2]
[340628727,1729557033218,-500.0,0.00016438,2]
[340628728,1729557033228,-500.0,0.00016438,2]
[340628729,1729557033238,-1187.23,0.00016438,2]
[340628730,1729557033248,-396.85610426,0.00016438,2]
[340628731,1729557033270,-624.95,0.00016438,2]
[340628732,1729557033279,-500.0,0.00016438,2]
[340628733,1729557033289,-500.0,0.00016438,2]
[340628734,1729557033298,-500.0,0.00016438,2]
[340628735,1729557033307,-522.67,0.00016438,2]
[340628736,1729557033317,-606.73828843,0.00016438,2]
[340628737,1729557033327,-688.87,0.00016438,2]
[340628738,1729557033336,-727.12,0.00016438,2]
[340628739,1729557033346,-500.0,0.00016438,2]
[340628740,1729557033356,-500.0,0.00016438,2]
[340628741,1729557033366,-151.0,0.00016438,2]
[340628742,1729557033376,-151.0,0.00016438,2]
[340628743,1729557033385,-500.0,0.00016438,2]
[340628744,1729557033395,-500.0,0.00016438,2]
[340628745,1729557033405,-500.0,0.00016438,2]
[340628746,1729557033414,-500.0,0.00016438,2]
[340628747,1729557033424,-500.0,0.00016438,2]
[340628748,1729557033433,-500.0,0.00016438,2]
[340628749,1729557033444,-500.0,0.00016438,2]
[340628750,1729557033454,-1141.29,0.00016438,2]
[340628751,1729557033467,-500.0,0.00016438,2]
[340628752,1729557033478,-934.92,0.00016438,2]
[340628753,1729557033489,-312.84494246,0.00016438,2]
[340628754,1729557033500,-500.0,0.00016438,2]
[340628755,1729557033523,-500.0,0.00016438,2]
[340628756,1729557033533,-500.0,0.00016438,2]
[340628757,1729557033543,-740.09,0.00016438,2]
[340628758,1729557033554,-500.0,0.00016438,2]
[340628759,1729557033563,-500.0,0.00016438,2]
[340628760,1729557033573,-843.65,0.00016438,2]
[340628761,1729557033583,-500.0,0.00016438,2]
[340628762,1729557033592,-500.0,0.00016438,2]
[340628763,1729557033602,-500.0,0.00016438,2]
[340628764,1729557033613,-500.0,0.00016438,2]
[340628765,1729557033623,-737.87,0.00016438,2]
[340628766,1729557033632,-606.68,0.00016438,2]
[340628767,1729557033642,-151.0,0.00016438,2]
[340628768,1729557033831,-931.36,0.00016438,2]
[340628769,1729557033843,-500.0,0.00016438,2]
[340628770,1729557033853,-1035.33,0.00016438,2]
[340628771,1729557033863,-573.37,0.00016438,2]
[340628772,1729557033874,-757.94,0.00016438,2]
[340628773,1729557033884,-500.0,0.00016438,2]
[340628774,1729557033893,-500.0,0.00016438,2]
[340628775,1729557033903,-728.15,0.00016438,2]
[340628776,1729557033914,-500.0,0.00016438,2]
[340628777,1729557033924,-500.0,0.00016438,2]
[340628778,1729557033934,-500.0,0.00016438,2]
[340628779,1729557033944,-500.0,0.00016438,2]
[340628780,1729557033954,-881.93,0.00016438,2]
[340628781,1729557033965,-500.0,0.00016438,2]
[340628782,1729557033975,-575.14,0.00016438,2]
[340628783,1729557033985,-532.07491557,0.00016438,2]
[340628784,1729557033996,-500.0,0.00016438,2]
[340628785,1729557034013,-1110.88,0.00016438,2]
[340628786,1729557034026,-151.0,0.00016438,2]
[340628787,1729557034036,-151.0,0.00016438,2]
[340628788,1729557034047,-822.24,0.00016438,2]
[340628789,1729557034057,-909.06,0.00016438,2]
[340628790,1729557034066,-500.0,0.00016438,2]
[340628791,1729557034076,-508.3833842,0.00016438,2]
[340628792,1729557034086,-508.8,0.00016438,2]
[340628793,1729557034096,-514.56,0.00016438,2]
[340628794,1729557034106,-413.03456229,0.00016438,2]
[340628795,1729557034115,-681.86,0.00016438,2]
[340628796,1729557034126,-832.16,0.00016438,2]
[340628797,1729557034136,-500.0,0.00016438,2]
[340628798,1729557034145,-500.0,0.00016438,2]
[340628799,1729557034155,-1618.7,0.00016438,2]
[340628800,1729557034165,-740.48,0.00016438,2]
[340628801,1729557034175,-686.19,0.00016438,2]
[340628802,1729557034185,-1000.0,0.00016438,2]
[340628803,1729557034194,-637.03,0.00016438,2]
[340628804,1729557034204,-833.71,0.00016438,2]
[340628805,1729557034213,-500.0,0.00016438,2]
[340628806,1729557034222,-500.0,0.00016438,2]
[340628807,1729557034231,-500.0,0.00016438,2]
[340628808,1729557034242,-1588.61,0.00016438,2]
[340628809,1729557034254,-500.0,0.00016438,2]
[340628810,1729557034268,-500.0,0.00016438,2]
[340628811,1729557034278,-755.6,0.00016438,2]
[340628812,1729557034289,-500.0,0.00016438,2]
[340628813,1729557034299,-500.0,0.00016438,2]
[340628814,1729557034308,-596.0,0.00016438,2]
[340628815,1729557034317,-500.0,0.00016438,2]
[340628816,1729557034328,-509.4,0.00016438,2]
[340628817,1729557034338,-500.0,0.00016438,2]
[340628818,1729557034348,-1036.88,0.00016438,2]
[340628819,1729557034357,-500.0,0.00016438,2]
[340628820,1729557034368,-500.0,0.00016438,2]
[340628821,1729557034378,-500.0,0.00016438,2]
[340628822,1729557034388,-500.0,0.00016438,2]
[340628823,1729557034398,-664.88,0.00016438,2]
[340628824,1729557034408,-500.0,0.00016438,2]
[340628825,1729557034418,-559.19,0.00016438,2]
[340628826,1729557034429,-500.0,0.00016438,2]
[340628827,1729557034438,-500.0,0.00016438,2]
[340628828,1729557034449,-699.79,0.00016438,2]
[340628829,1729557034460,-500.0,0.00016438,2]
[340628830,1729557034471,-500.0,0.00016438,2]
[340628831,1729557034482,-500.0,0.00016438,2]
[340628832,1729557034492,-524.5,0.00016438,2]
[340628833,1729557034502,-300.06574383,0.00016438,2]
[340628834,1729557034521,-500.0,0.00016438,2]
[340628835,1729557034531,-500.0,0.00016438,2]
[340628836,1729557034541,-506.12,0.00016438,2]
[340628837,1729557034551,-500.0,0.00016438,2]
[340628838,1729557034561,-500.0,0.00016438,2]
[340628839,1729557034571,-609.19,0.00016438,2]
[340628840,1729557034581,-500.0,0.00016438,2]
[340628841,1729557034592,-1089.8,0.00016438,2]
[340628842,1729557034602,-500.0,0.00016438,2]
[340628843,1729557034613,-500.0,0.00016438,2]
[340628844,1729557034622,-506.9,0.00016438,2]
[340628845,1729557034632,-500.0,0.00016438,2]
[340628846,1729557034643,-151.0,0.00016438,2]
[340628847,1729557034653,-151.0,0.00016438,2]
[340628848,1729557034662,-151.0,0.00016438,2]
[340628849,1729557034673,-701.91,0.00016438,2]
[340628850,1729557034683,-500.0,0.00016438,2]
[340628851,1729557034692,-500.0,0.00016438,2]
[340628852,1729557034702,-500.0,0.00016438,2]
[340628853,1729557034713,-500.0,0.00016438,2]
[340628854,1729557034723,-500.0,0.00016438,2]
[340628855,1729557034733,-680.94,0.00016438,2]
[340628856,1729557034743,-500.0,0.00016438,2]
[340628857,1729557034757,-657.26,0.00016438,2]
[340628858,1729557034767,-1270.64,0.00016438,2]
[340628859,1729557034778,-500.0,0.00016438,2]
[340628860,1729557034788,-21399.33,0.00016438,2]
[340628861,1729557034800,-505.29,0.00016438,2]
[340628862,1729557034810,-500.0,0.00016438,2]
[340628863,1729557034820,-500.0,0.00016438,2]
[340628864,1729557034830,-151.0,0.00016438,2]
[340628865,1729557034839,-151.0,0.00016438,2]
[340628866,1729557034849,-151.0,0.00016438,2]
[340628867,1729557034859,-151.0,0.00016438,2]
[340628868,1729557034869,-151.0,0.00016438,2]
[340628869,1729557034879,-151.0,0.00016438,2]
[340628870,1729557034888,-151.0,0.00016438,2]
[340628871,1729557034899,-500.0,0.00016438,2]
[340628872,1729557034909,-151.0,0.00016438,2]
[340628873,1729557034919,-4280.2,0.00016438,2]
[340628874,1729557034929,-265.56364,0.00016438,2]
[340628875,1729557034938,-649.67,0.00016438,2]
[340628876,1729557034948,-151.0,0.00016438,2]
[340628877,1729557034958,-151.0,0.00016438,2]